bitfinex-derivatives/quotes_ETHF0:USTF0_20240907
["timestamp","ask_amount","ask_price","bid_price","bid_amount"]
[1725668554543,0.31407,2229.4,2229.1,1.47903895]
[1725668554846,0.31408,2229.3,2229.1,1.47903895]
[1725668556940,0.31407,2229.4,2229.1,1.47903895]
[1725668557448,0.31407,2229.3,2229.2,1.16493895]
[1725668557646,0.31407,2229.3,2229.1,1.47903895]
[1725668558652,0.31407,2229.3,2229.2,1.16493895]
[1725668558954,0.31407,2229.3,2229.1,1.47903895]
[1725668559352,3.2078,2229.5,2229.2,5.65053895]
[1725668559559,1e-08,2229.6,2229.5,0.31405]
[1725668559747,1e-08,2229.6,2229.5,3.7219575]
[1725668559955,1e-08,2229.6,2229.5,9.1567142]
[1725668560150,1e-08,2229.6,2229.5,10.12023631]
[1725668560354,1e-08,2229.6,2229.5,10.61611242]
[1725668561155,1e-08,2229.6,2229.5,17.43512376]
[1725668561455,1e-08,2229.6,2229.5,12.9470275]
[1725668561647,1e-08,2229.6,2229.5,9.7392275]
[1725668561850,1e-08,2229.6,2229.5,7.40831242]
[1725668562355,1e-08,2229.6,2229.5,9.153145]
[1725668562552,1e-08,2229.6,2229.5,7.40831242]
[1725668563549,1e-08,2229.6,2229.5,7.09426242]
[1725668563750,0.31403001,2229.6,2229.5,3.9895579]
[1725668564058,0.31403001,2229.6,2229.5,1.16390049]
[1725668565354,0.31403001,2229.6,2229.5,3.40828919]
[1725668565548,1e-08,2229.6,2229.5,4.30393418]
[1725668565953,1e-08,2229.6,2229.5,8.78953418]
[1725668566351,1e-08,2229.6,2229.5,7.0440387]
[1725668566850,1e-08,2229.6,2229.5,4.30443629]
[1725668567055,1e-08,2229.6,2229.5,4.30443556]
[1725668567259,1e-08,2229.6,2229.5,4.88935378]
[1725668567559,1e-08,2229.6,2229.5,2.5584387]
[1725668567951,1e-08,2229.6,2229.5,8.79054151]
[1725668568256,1e-08,2229.6,2229.5,11.53226783]
[1725668569754,1e-08,2229.6,2229.5,14.42145191]
[1725668569960,1e-08,2229.6,2229.5,11.53226783]
[1725668570254,1e-08,2229.6,2229.5,7.04366423]
[1725668570456,1e-08,2229.6,2229.5,14.42087677]
[1725668570659,0.70827,2230.1,2229.8,0.314]
[1725668570958,0.70827,2230.1,2229.9,1.56267256]
[1725668571462,0.31397,2230.0,2229.9,1.56267256]
[1725668571759,0.31397,2230.0,2229.9,0.3987]
[1725668572354,0.70827,2230.1,2229.9,1.56267256]
[1725668572659,0.31391,2230.5,2230.0,4.484]
[1725668572860,0.68621,2230.5,2230.2,1.1637782]
[1725668573063,0.68621,2230.5,2230.3,1.8794082]
[1725668573064,0.3723,2230.5,2230.3,1.8794082]
[1725668573253,0.68621,2230.5,2230.3,1.5654782]
[1725668575060,0.68621,2230.5,2230.3,0.4017]
[1725668575260,0.68621,2230.5,2230.3,1.5654782]
[1725668575456,0.68621,2230.5,2230.3,0.4017]
[1725668575661,0.31392,2230.4,2230.3,0.4017]
[1725668576955,0.68621,2230.5,2230.3,0.4017]
[1725668579861,0.31392,2230.4,2230.3,0.4017]
[1725668581160,0.31391,2230.5,2230.3,5.19963]
[1725668581362,3.9384,2230.7,2230.3,0.4017]
[1725668581669,3.88639,2230.7,2230.4,1.1637782]
[1725668581867,3.88639,2230.7,2230.5,0.3139]
[1725668582563,0.31389,2230.6,2230.4,1.4776882]
[1725668582968,3.5725,2230.7,2230.4,1.4776882]
[1725668582969,0.3139,2230.5,2230.4,1.4776882]
[1725668583167,0.31392,2230.4,2230.3,2.14765884]
[1725668583371,0.31392,2230.4,2230.3,1.56311755]
[1725668583670,0.31392,2230.5,2230.3,1.87704755]
[1725668584169,0.31388,2230.7,2230.5,0.31389]
[1725668584466,4.42386,2230.9,2230.7,0.31387]
[1725668584666,0.31384,2231.0,2230.8,0.31386]
[1725668584868,0.31383,2231.0,2230.8,0.31386]
[1725668586376,1.05303,2231.1,2230.9,0.31385]
[1725668586673,0.68453,2231.1,2230.9,0.31385]
[1725668586877,0.3632,2231.3,2230.9,0.31385]
[1725668587067,0.3138,2231.3,2231.1,0.31381]
[1725668587270,0.3138,2231.3,2231.2,0.3681]
[1725668589072,3.2078,2231.4,2231.3,0.31379]
[1725668589271,0.31374,2231.7,2231.3,4.4816]
[1725668589477,0.3737,2231.9,2231.4,0.78445]
[1725668589776,3.52148,2232.1,2231.8,0.31372]
[1725668589972,0.7474,2232.3,2231.6,3.1]
[1725668590173,0.7474,2232.3,2231.7,3.5965]
[1725668590470,0.7474,2232.3,2231.9,0.31369]
[1725668590471,1.06106,2232.3,2231.9,0.31369]
[1725668590664,0.7474,2232.3,2231.8,0.31371]
[1725668590865,0.7474,2232.3,2231.7,3.91023]
[1725668591075,6.3078,2232.1,2231.7,0.3887]
[1725668591464,0.31377,2231.5,2231.2,3.2078]
[1725668591669,3.1,2231.7,2231.0,0.31383]
[1725668591868,0.31378,2231.4,2231.1,0.31382]
[1725668592473,0.31378,2231.4,2231.0,0.71622]
[1725668592975,0.31378,2231.4,2231.1,0.31381]
[1725668593674,0.31378,2231.4,2231.0,0.71623]
[1725668593976,3.2078,2231.5,2231.0,0.4024]
[1725668594171,0.31381,2231.2,2231.0,0.4024]
[1725668594376,0.68691,2231.3,2231.0,0.4024]
[1725668594673,0.6869,2231.3,2231.0,0.71623]
[1725668594974,0.3731,2231.3,2231.0,0.71623]
[1725668595775,0.68689,2231.3,2231.0,0.71623]
[1725668596673,0.68689,2231.3,2231.1,0.31382]
[1725668596877,0.68689,2231.3,2231.0,0.4024]
[1725668596878,0.68689,2231.3,2231.0,0.71623]
[1725668597083,0.68689,2231.3,2231.1,0.31382]
[1725668597378,0.31378,2231.4,2231.1,0.31382]
[1725668597580,0.31378,2231.4,2231.1,0.31381]
[1725668598078,0.3138,2231.3,2231.1,0.31381]
[1725668599072,3.2078,2231.8,2231.2,7.5816]
[1725668599273,4.11,2231.9,2231.2,3.1]
[1725668599477,0.31374,2231.7,2231.5,0.31375]
[1725668599778,0.31374,2231.7,2231.6,0.392]
[1725668599980,4.11,2231.9,2231.4,0.31377]
[1725668600181,0.31375,2231.6,2231.4,0.31377]
[1725668600381,0.78433,2231.8,2231.3,0.392]
[1725668600577,0.31378,2231.5,2231.3,0.70579]
[1725668601179,0.31374,2231.7,2231.5,0.31375]
[1725668601882,0.3137,2232.0,2231.8,0.31371]
[1725668602177,0.31367,2232.2,2232.0,0.31368]
[1725668602377,0.31367,2232.2,2231.9,0.392]
[1725668602687,0.31367,2232.2,2231.9,0.7057]
[1725668602982,0.31368,2232.1,2231.9,0.7057]
[1725668603181,0.31367,2232.2,2232.0,0.31369]
[1725668603382,3.88926,2232.3,2232.0,0.31369]
[1725668603583,3.5756,2232.3,2232.0,0.31369]
[1725668603783,3.52146,2232.3,2232.0,0.31369]
[1725668604286,5.28409,2232.5,2231.9,0.7057]
[1725668604287,0.31367,2232.2,2231.9,0.7057]
[1725668604491,0.31368,2232.1,2231.9,0.7057]
[1725668605080,0.31368,2232.1,2231.9,0.392]
[1725668606188,0.31369,2232.0,2231.9,0.392]
[1725668607493,3.52148,2232.2,2231.9,0.392]
[1725668607882,0.31368,2232.1,2231.9,0.392]
[1725668609088,3.52147,2232.2,2231.9,0.70571]
[1725668609282,3.2078,2232.2,2231.9,0.392]
[1725668609484,0.31368,2232.1,2231.9,0.392]
[1725668609684,0.31368,2232.1,2231.9,0.70571]
[1725668609890,3.52147,2232.2,2231.9,0.70571]
[1725668610985,0.31368,2232.1,2231.9,0.70571]
[1725668611692,0.31369,2232.0,2231.9,0.392]
[1725668613794,0.31369,2232.1,2231.9,0.392]
[1725668614503,0.31369,2232.0,2231.9,0.392]
[1725668616099,0.31373,2231.8,2231.6,3.2078]
[1725668616295,0.31372,2231.9,2231.6,3.52155]
[1725668616495,0.31372,2231.9,2231.6,0.31375]
[1725668616698,0.78423,2232.1,2231.6,0.31375]
[1725668617189,0.31372,2231.9,2231.7,0.31374]
[1725668617395,0.31372,2231.9,2231.8,0.3732]
[1725668622992,0.31374,2231.7,2231.5,6.62155]
[1725668623305,0.31374,2231.7,2231.6,0.3948]
[1725668623493,0.31373,2231.8,2231.6,0.3948]
[1725668624200,0.31374,2231.7,2231.6,0.3948]
[1725668625899,0.31374,2231.7,2231.6,1.6848]
[1725668626197,0.31374,2231.7,2231.6,1.99855]
[1725668626495,0.31373,2231.8,2231.6,3.15996755]
[1725668626699,0.31373,2231.8,2231.6,1.99855]
[1725668627201,4.41505,2232.0,2231.7,0.31373]
[1725668628005,0.31372,2231.8,2231.7,0.31373]
[1725668628201,0.31372,2231.8,2231.7,1.16141755]
[1725668629310,0.0343,2232.0,2231.9,0.31371]
[1725668629509,0.0343,2232.0,2231.9,1.60371]
[1725668629696,0.0343,2232.0,2231.9,7.24415114]
[1725668631308,0.0343,2232.0,2231.9,5.00602321]
[1725668631614,0.0343,2232.0,2231.9,9.48602321]
[1725668632207,0.0343,2232.0,2231.9,10.07154091]
[1725668632806,0.0343,2232.0,2231.9,8.86294091]
[1725668633010,2.66726,2231.3,2231.1,2.18307723]
[1725668633210,1.09848,2230.9,2230.8,7.51e-06]
[1725668633509,1.09848,2230.9,2230.4,7.51e-06]
[1725668633510,0.3139,2230.5,2230.4,7.51e-06]
[1725668633706,0.31394,2230.3,2230.1,1.74565127]
[1725668634016,0.31399,2229.9,2229.8,1.74565127]
[1725668634305,0.31399,2229.9,2228.6,6.73024727]
[1725668634306,0.31403,2229.7,2229.3,4.95345127]
[1725668634510,1.0190006,2229.6,2229.3,3.2078]
[1725668634806,0.7049706,2229.5,2229.3,3.2078]
[1725668635011,0.7049706,2229.4,2229.3,3.2078]
[1725668635203,0.46101439,2229.4,2229.3,3.2078]
[1725668635400,0.24395621,2229.4,2229.3,3.2078]
[1725668635900,0.31402,2229.7,2229.3,3.2078]
[1725668636104,0.9859725,2229.6,2229.3,3.2078]
[1725668636409,0.70541421,2229.5,2229.3,3.2078]
[1725668636615,0.70541421,2229.4,2229.3,3.2078]
[1725668638107,0.24412679,2229.4,2229.3,3.2078]
[1725668639516,0.31402,2229.7,2229.0,3.41411]
[1725668639813,0.31402,2229.7,2229.2,3.2078]
[1725668640216,1.0194258,2229.6,2229.2,3.2078]
[1725668641709,0.70545428,2229.5,2229.2,3.2078]
[1725668641912,0.2441422,2229.4,2229.2,3.2078]
[1725668642116,0.2441422,2229.3,2229.2,3.2078]
[1725668642615,0.2441422,2229.3,2229.2,7.6934]
[1725668642909,0.31403,2229.6,2229.2,7.6934]
[1725668643115,0.24413487,2229.5,2229.2,3.2078]
[1725668643313,0.31403,2229.6,2229.2,3.2078]
[1725668643518,0.31403,2229.7,2229.2,3.2078]
[1725668643713,0.24413343,2229.5,2229.2,3.2078]
[1725668644011,0.31403,2229.6,2229.2,3.2078]
[1725668644215,3.2078,2229.8,2229.2,3.2078]
[1725668644410,4.11,2230.1,2229.5,3.2078]
[1725668644714,4.11,2230.1,2229.8,0.314]
[1725668644915,0.31395,2230.2,2229.7,0.31401]
[1725668645216,0.31396,2230.1,2229.7,0.31401]
[1725668645512,0.31396,2230.2,2229.7,0.31401]
[1725668645712,0.78477,2230.5,2229.7,0.31401]
[1725668645924,3.2078,2230.3,2229.7,0.31401]
[1725668646118,0.24402228,2230.2,2229.7,0.31401]
[1725668646419,3.2078,2230.3,2229.7,0.31401]
[1725668646622,3.2078,2230.3,2229.6,0.7346]
[1725668646623,0.31397,2230.1,2229.6,1.04862]
[1725668647115,3.1,2230.2,2229.6,0.7346]
[1725668647314,0.31402,2229.7,2229.6,0.3669]
[1725668648615,0.31402,2229.7,2229.2,3.2078]
[1725668648616,0.31403,2229.6,2229.2,3.52188]
[1725668648915,0.31403,2229.7,2229.3,0.31407]
[1725668649118,11.20277,2230.0,2229.2,3.2078]
[1725668649119,3.2078,2229.8,2229.2,3.2078]
[1725668649324,0.31409,2229.2,2229.1,0.3938]
[1725668649619,0.31409001,2229.2,2229.1,0.3938]
[1725668649923,1e-08,2229.2,2229.1,0.3938]
[1725668654915,1e-08,2229.2,2229.1,0.7079]
[1725668655526,1e-08,2229.2,2229.1,0.3938]
[1725668655918,1e-08,2229.2,2229.1,0.7079]
[1725668657919,1e-08,2229.2,2229.1,0.3938]
[1725668658620,0.31409001,2229.2,2229.1,0.3938]
[1725668659328,1e-08,2229.2,2229.1,0.3938]
[1725668659915,0.31409001,2229.2,2229.1,0.3938]
[1725668660127,1e-08,2229.2,2229.1,0.3938]
[1725668662421,4.48640001,2229.2,2228.8,3.2078]
[1725668662735,0.31411,2229.1,2228.8,0.31414]
[1725668663026,0.31412,2229.0,2228.7,0.31415]
[1725668663232,0.31413,2228.9,2228.6,0.71536]
[1725668663529,0.31414,2228.9,2228.6,0.71537]
[1725668664837,0.31414,2228.9,2228.7,0.31416]
[1725668665126,0.31412,2229.0,2228.6,0.4012]
[1725668665334,0.31412,2229.0,2228.7,0.31415]
[1725668665828,1e-08,2229.2,2228.5,10.7198]
[1725668666023,3.1,2229.1,2228.5,7.512]
[1725668666230,0.78533,2228.9,2228.5,7.512]
[1725668666533,0.31415,2228.8,2228.5,7.82618]
[1725668666934,0.31416,2228.7,2228.5,7.512]
[1725668667527,0.31416,2228.7,2228.5,7.82619]
[1725668667920,0.31416,2228.7,2228.5,7.512]
[1725668668128,0.31415,2228.8,2228.5,7.82618]
[1725668668629,0.31413,2228.9,2228.6,0.31416]
[1725668668827,0.31413,2228.9,2228.7,0.68536]
[1725668670229,0.31413,2228.9,2228.7,0.3712]
[1725668670728,0.31411,2229.1,2228.8,0.31414]
[1725668670928,1e-08,2229.2,2229.0,0.31411]
[1725668671130,0.24418966,2229.1,2229.0,0.31411]
[1725668671434,0.24419698,2229.1,2229.0,0.31411]
[1725668673136,0.24419698,2229.1,2228.9,0.31412]
[1725668673434,0.24419698,2229.0,2228.9,0.31412]
[1725668673823,0.34840001,2229.2,2229.0,0.31412]
[1725668674034,0.24416089,2229.1,2229.0,0.31412]
[1725668674332,4.73056089,2229.1,2228.8,3.2078]
[1725668674529,0.24416089,2229.0,2228.9,0.31413]
[1725668675227,0.70555745,2229.0,2228.9,0.31413]
[1725668675824,1.01967745,2229.0,2228.8,0.31414]
[1725668676035,0.70556967,2228.9,2228.8,0.31414]
[1725668676931,0.98624019,2229.0,2228.9,0.31413]
[1725668677136,0.98623842,2229.0,2228.9,0.31413]
[1725668678438,0.98623842,2229.0,2228.9,2.55904579]
[1725668679341,0.98623842,2229.0,2228.9,4.30469706]
[1725668679739,0.31411,2229.1,2228.9,4.30469706]
[1725668679934,0.98625029,2229.0,2228.9,2.05978127]
[1725668680152,0.98625029,2229.0,2228.9,4.30471956]
[1725668681146,1.30037029,2229.0,2228.9,4.30471956]
[1725668681440,0.98625029,2229.0,2228.9,4.30471956]
[1725668681835,1.30037029,2229.0,2228.9,4.30476104]
[1725668683143,1.30038841,2229.0,2228.9,4.30476104]
[1725668683545,0.98626841,2229.0,2228.9,4.30476104]
[1725668684851,1.30038841,2229.0,2228.9,3.99063104]
[1725668685050,1.30038841,2229.0,2228.9,2.55910977]
[1725668685252,0.98626841,2229.0,2228.9,4.30476104]
[1725668686549,0.24421404,2229.0,2228.9,4.30476104]
[1725668686846,0.98625814,2229.0,2228.9,4.30472696]
[1725668688954,1.30037814,2229.0,2228.9,4.30472696]
[1725668689155,1.30037814,2229.0,2228.9,2.55907569]
[1725668689357,1.30037814,2229.0,2228.9,2.24494569]
[1725668689655,0.59473703,2229.0,2228.9,2.24494569]
[1725668689851,1.30041337,2229.0,2228.9,2.24494569]
[1725668690048,1.01978914,2229.0,2228.9,2.24494569]
[1725668690352,1.30041337,2229.0,2228.9,2.24494569]
[1725668690547,0.98629337,2229.0,2228.9,4.30472696]
[1725668690957,0.98629337,2229.0,2228.9,2.55907569]
[1725668691355,0.98629337,2229.0,2228.9,4.30472696]
[1725668692357,0.98629337,2229.0,2228.9,2.55907569]
[1725668692655,1.30041337,2229.0,2228.9,2.55907569]
[1725668693057,1e-08,2229.2,2229.0,0.31411]
[1725668693259,1e-08,2229.2,2229.1,3.99806029]
[1725668693452,1.30028408,2229.2,2229.1,3.99858884]
[1725668694448,1.30028408,2229.2,2229.1,2.24486949]
[1725668694957,5.78668408,2229.2,2229.1,3.99922653]
[1725668695157,5.78668408,2229.2,2229.1,2.98900407]
[1725668695359,5.78668408,2229.2,2229.1,1.23464703]
[1725668696459,5.78631293,2229.2,2229.1,2.98900407]
[1725668696755,0.98582293,2229.2,2229.1,3.30310407]
[1725668696958,4.11,2229.6,2229.5,0.31405]
[1725668697160,0.98498595,2229.6,2229.5,0.31405]
[1725668697556,0.98498595,2229.6,2229.5,9.28773462]
[1725668697852,0.98498595,2229.6,2229.5,12.21027355]
[1725668698058,0.98498595,2229.6,2229.5,9.28773462]
[1725668698375,1.40571009,2229.6,2229.5,9.28773462]
[1725668698855,1.68626358,2229.6,2229.5,9.28773462]
[1725668699063,1.68622666,2229.6,2229.5,9.28773462]
[1725668699260,0.98498595,2229.6,2229.5,9.28773462]
[1725668699462,1.68622666,2229.6,2229.5,9.28773462]
[1725668699660,1.68622666,2229.6,2229.5,11.62224994]
[1725668700261,1.68622666,2229.6,2229.5,6.82259994]
[1725668700451,0.98498595,2229.6,2229.5,2.06555306]
[1725668700657,1.40571719,2229.6,2229.5,9.28785914]
[1725668700958,0.98498595,2229.6,2229.5,10.46507914]
[1725668701166,7.5925,2230.2,2229.6,0.78509]
[1725668701167,0.70127545,2229.8,2229.6,0.78509]
[1725668701465,0.78474,2230.6,2229.8,0.78501]
[1725668701466,8.09e-06,2229.9,2229.8,0.78501]
[1725668701762,4.11,2230.5,2230.4,0.31392]
[1725668701963,3.1,2230.5,2230.4,1.74842657]
[1725668702156,0.31395,2230.2,2230.1,7.512]
[1725668702351,4.22286562,2230.2,2230.1,7.512]
[1725668702554,8.79062,2230.2,2230.1,7.512]
[1725668702754,14.79062,2230.2,2230.1,7.512]
[1725668702957,15.77426196,2230.2,2230.1,7.512]
[1725668704059,15.77442603,2230.2,2230.1,7.512]
[1725668705664,9.77442603,2230.2,2230.1,7.512]
[1725668707259,8.98955603,2230.2,2230.1,7.512]
[1725668707565,4.50555603,2230.2,2230.1,7.512]
[1725668708565,1.29775603,2230.2,2230.1,7.512]
[1725668709159,0.31395,2230.2,2230.1,7.512]
[1725668709465,1.29759646,2230.2,2230.1,7.512]
[1725668711268,1.99881544,2230.2,2230.1,7.512]
[1725668711467,1.29759646,2230.2,2230.1,7.512]
[1725668711867,2.08246646,2230.2,2230.1,7.512]
[1725668712068,12.56646646,2230.2,2230.1,7.512]
[1725668712264,12.56646646,2230.2,2230.1,6.48]
[1725668712567,11.58282,2230.2,2230.1,6.48]
[1725668712758,12.56664798,2230.2,2230.1,6.48]
[1725668715665,11.58282,2230.2,2230.1,6.48]
[1725668715873,12.56652908,2230.2,2230.1,6.48]
[1725668716061,12.10646249,2230.2,2230.1,6.48]
[1725668716267,13.09012256,2230.2,2230.1,6.48]
[1725668717465,13.09017591,2230.2,2230.1,6.48]
[1725668717974,13.09017591,2230.2,2230.1,5.448]
[1725668719180,13.0902119,2230.2,2230.1,5.448]
[1725668722480,12.1064521,2230.2,2230.1,5.448]
[1725668722670,13.09020325,2230.2,2230.1,5.448]
[1725668723071,12.56657115,2230.2,2230.1,5.448]
[1725668723573,0.98375115,2230.2,2230.1,5.448]
[1725668723772,1.25831595,2230.2,2230.1,5.448]
[1725668723971,1.99891908,2230.2,2230.1,5.448]
[1725668724168,1.99891908,2230.2,2230.1,5.8352]
[1725668724481,6.48291908,2230.2,2230.1,5.448]
[1725668724779,5.78170115,2230.2,2230.1,5.448]
[1725668724964,1.99894278,2230.2,2230.1,5.448]
[1725668725566,2.03324278,2230.2,2230.1,5.448]
[1725668726172,2.03310717,2230.2,2230.1,5.448]
[1725668727171,1.01792947,2230.2,2230.1,5.76196]
[1725668727373,1.33187947,2230.2,2230.1,5.448]
[1725668729477,0.34825,2230.2,2230.1,5.448]
[1725668729689,1.33182266,2230.2,2230.1,5.448]
[1725668730885,2.03302133,2230.2,2230.1,5.448]
[1725668731673,1.33182266,2230.2,2230.1,5.448]
[1725668732069,2.03302133,2230.2,2230.1,5.448]
[1725668733071,2.03304085,2230.2,2230.1,5.448]
[1725668734379,1.33183557,2230.2,2230.1,5.448]
[1725668734580,13.38557557,2230.2,2230.1,4.16807]
[1725668734883,0.31405,2229.5,2229.4,0.3871]
[1725668735072,3.76494736,2229.5,2229.4,0.3871]
[1725668735273,4.50543557,2229.5,2229.4,0.3871]
[1725668736081,5.79543557,2229.5,2229.4,0.3871]
[1725668736280,5.79591517,2229.5,2229.4,0.3871]
[1725668737780,2.58811517,2229.5,2229.4,0.3871]
[1725668737975,1.29811517,2229.5,2229.4,0.3871]
[1725668739184,1.99956537,2229.5,2229.4,0.3871]
[1725668739376,1.99956537,2229.5,2229.4,0.5951]
[1725668739575,1.99955874,2229.5,2229.4,0.5951]
[1725668739888,1.01752799,2229.5,2229.4,0.5951]
[1725668740079,1.29810625,2229.5,2229.4,0.5951]
[1725668740280,1.9995519,2229.5,2229.4,0.5951]
[1725668740479,0.98405625,2229.5,2229.4,3.15377924]
[1725668740686,0.98405625,2229.5,2229.4,5.39476]
[1725668740883,0.98405625,2229.5,2229.4,13.6390863]
[1725668741185,0.31077545,2229.5,2229.4,13.6390863]
[1725668741381,0.31077545,2229.5,2229.4,7.6390863]
[1725668741583,0.31402,2229.7,2229.5,0.31404]
[1725668741888,1.01535141,2229.7,2229.6,2.2443263]
[1725668742681,1.01535141,2229.7,2229.6,3.99424707]
[1725668742882,1.01535141,2229.7,2229.6,2.2443263]
[1725668743082,0.31402,2229.7,2229.6,2.2443263]
[1725668743397,1.015393,2229.7,2229.6,3.99424707]
[1725668743686,1.015393,2229.7,2229.6,2.2443263]
[1725668743881,1.015393,2229.7,2229.6,3.99424707]
[1725668744082,1.015393,2229.7,2229.6,4.30827707]
[1725668744083,0.701373,2229.7,2229.6,4.30827707]
[1725668744283,0.701373,2229.8,2229.6,2.5583563]
[1725668744487,0.701373,2229.8,2229.7,4.30882327]
[1725668744790,0.31398,2230.0,2229.7,4.30882327]
[1725668744984,0.31398,2230.0,2229.8,2.2443263]
[1725668745185,0.31398,2230.0,2229.9,0.382]
[1725668746685,0.31398,2230.0,2229.6,2.45129697]
[1725668746686,7.6926,2230.0,2229.6,1.75047697]
[1725668746887,0.31402,2229.8,2229.5,2.06451697]
[1725668747089,0.31402,2229.7,2229.6,2.24430775]
[1725668749090,0.5945692,2229.7,2229.6,2.24430775]
[1725668749401,0.31402,2229.7,2229.6,2.24430775]
[1725668749794,0.5945737,2229.7,2229.6,2.24430775]
[1725668750390,0.5945737,2229.7,2229.6,3.99478472]
[1725668750797,0.5945737,2229.7,2229.6,2.24430775]
[1725668751097,0.31403,2229.6,2229.5,1.75047697]
[1725668751298,1.05455763,2229.6,2229.5,2.24435326]
[1725668751594,1.45305763,2229.6,2229.5,2.24435326]
[1725668751787,0.31405,2229.5,2229.4,2.34507697]
[1725668751991,1.05457763,2229.5,2229.4,4.58958128]
[1725668752392,1.05457763,2229.5,2229.4,2.83910431]
[1725668752695,0.31405,2229.5,2229.4,2.83910431]
[1725668752893,0.59461621,2229.5,2229.4,4.58958128]
[1725668753101,1.29773681,2229.5,2229.4,2.83910431]
[1725668754502,1.29773681,2229.5,2229.4,4.58958128]
[1725668755002,4.50553681,2229.5,2229.4,4.58958128]
[1725668755497,0.98368681,2229.5,2229.4,2.83910431]
[1725668755695,1.68505106,2229.5,2229.4,4.58958128]
[1725668755899,0.98368681,2229.5,2229.4,4.58958128]
[1725668756097,0.98368681,2229.5,2229.4,4.58955869]
[1725668756293,1.29773681,2229.5,2229.4,4.58955869]
[1725668756492,1.29773681,2229.5,2229.4,2.83908172]
[1725668756700,1.29773681,2229.5,2229.4,4.58955869]
[1725668757203,1.29773681,2229.5,2229.4,2.83908172]
[1725668758800,1.29773681,2229.5,2229.4,2.45248172]
[1725668759007,3.52185,2229.5,2229.4,1.37475792]
[1725668759197,4.50555134,2229.5,2229.4,1.37475792]
[1725668760394,5.20697127,2229.5,2229.4,1.37475792]
[1725668760594,4.50555134,2229.5,2229.4,1.37475792]
[1725668760803,4.50555134,2229.5,2229.4,2.45255055]
[1725668761501,3.80241863,2229.5,2229.4,1.37454782]
[1725668761706,4.50555005,2229.5,2229.4,1.37454782]
[1725668762402,4.50555005,2229.5,2229.4,2.45258198]
[1725668762599,4.50555005,2229.5,2229.4,1.37461739]
[1725668762904,3.52185,2229.5,2229.4,1.37461739]
[1725668763401,0.31405,2229.5,2229.4,2.45257702]
[1725668763602,0.31405,2229.5,2229.4,4.20305399]
[1725668763801,0.31405,2229.5,2229.4,2.45257702]
[1725668764300,1.05466702,2229.5,2229.4,2.45257702]
[1725668764506,1.29775501,2229.5,2229.4,2.45257702]
[1725668764901,1.29775501,2229.5,2229.4,2.45255744]
[1725668765204,0.98370501,2229.5,2229.4,7.25221744]
[1725668765396,0.70299945,2229.5,2229.4,7.25221744]
[1725668765798,0.70299945,2229.5,2229.4,2.76661744]
[1725668766106,0.98353422,2229.5,2229.4,2.76661744]
[1725668766302,0.98353422,2229.5,2229.4,4.51603741]
[1725668766503,0.98353422,2229.5,2229.4,9.00163741]
[1725668766707,1.29758422,2229.5,2229.4,4.20197741]
[1725668767005,1.99892115,2229.5,2229.4,4.20197741]
[1725668767201,0.31405,2229.5,2229.4,4.20197741]
[1725668767401,7.28205076,2229.5,2229.4,3.61928772]
[1725668767707,5.59697,2229.5,2229.4,1.37473028]
[1725668767904,6.58071489,2229.5,2229.4,1.37473028]
[1725668768797,5.79559489,2229.5,2229.4,1.37473028]
[1725668769105,1.68515001,2229.5,2229.4,9.00153297]
[1725668769506,0.98374489,2229.5,2229.4,9.00153297]
[1725668769702,1.68515001,2229.5,2229.4,9.00153297]
[1725668769910,1.68515001,2229.5,2229.4,9.00145861]
[1725668770705,0.98374489,2229.5,2229.4,9.00145861]
[1725668770905,1.68515001,2229.5,2229.4,9.00145861]
[1725668771099,0.98374489,2229.5,2229.4,9.00145861]
[1725668771504,0.98374489,2229.5,2229.4,7.25203864]
[1725668772107,0.98355935,2229.5,2229.4,7.25203864]
[1725668773707,0.98355935,2229.5,2229.4,8.54203864]
[1725668773907,0.98355935,2229.5,2229.4,15.3617143]
[1725668774215,0.31401,2229.8,2229.5,0.31404]
[1725668774417,0.31401,2229.8,2229.6,2.24437864]
[1725668774418,0.98187027,2229.7,2229.6,2.24437864]
[1725668774610,1.40432538,2229.7,2229.6,2.55840864]
[1725668774807,1.68485368,2229.7,2229.6,2.24417991]
[1725668775818,1.68485368,2229.7,2229.6,2.55820991]
[1725668776014,1.68485368,2229.7,2229.6,8.33300991]
[1725668776316,4.11,2230.1,2230.0,1.09891]
[1725668776509,0.70116042,2230.4,2230.3,0.31393]
[1725668776815,0.70116042,2230.4,2230.3,2.55810991]
[1725668777315,0.70116042,2230.5,2230.4,0.31392]
[1725668777616,0.70116042,2230.5,2230.4,4.30582897]
[1725668778010,0.70116042,2230.5,2230.4,3.99190897]
[1725668778613,0.70116042,2230.5,2230.4,2.24417991]
[1725668779213,4.59035042,2230.6,2230.4,2.24417991]
[1725668779425,4.59035042,2230.6,2230.5,1.16486858]
[1725668780511,4.59035042,2230.6,2230.4,1.16486858]
[1725668780923,4.59035042,2230.6,2230.5,1.16486858]
[1725668781115,3.88919,2230.6,2230.5,1.16486858]
[1725668781312,3.88919,2230.6,2230.4,1.16486858]
[1725668781510,3.5753,2230.6,2230.4,1.47877858]
[1725668781918,3.88919,2230.6,2230.4,1.47877858]
[1725668782320,0.68139,2230.6,2230.4,1.47877858]
[1725668783423,0.70106882,2230.7,2230.6,0.31389]
[1725668783611,0.70397,2230.8,2230.6,2.55702164]
[1725668783916,0.70397,2230.8,2230.6,1.16272179]
[1725668784118,0.28039913,2230.7,2230.6,1.16272179]
[1725668784913,0.28039913,2230.7,2230.6,1.47661179]
[1725668785107,0.2804014,2230.7,2230.6,1.47661179]
[1725668785307,4.81100352,2231.1,2230.6,11.64592179]
[1725668785510,0.66039614,2231.0,2230.8,0.31386]
[1725668785713,0.28039614,2230.9,2230.7,1.47659179]
[1725668785921,0.69384,2231.0,2230.7,1.47659179]
[1725668786218,0.73955424,2230.9,2230.8,0.31386]
[1725668787224,0.45917337,2230.9,2230.8,0.31386]
[1725668788221,0.70162043,2230.9,2230.7,0.31387]
[1725668789114,0.70162043,2230.9,2230.8,0.31386]
[1725668790822,0.24244706,2230.9,2230.8,0.31386]
[1725668791822,0.38,2231.0,2230.8,0.31386]